[Event "NOR-ch Various 2019"]
[Site "Larvik"]
[Date "2019.07.09"]
[Round "4.33"]
[White "Laverton, Christian"]
[Black "Demac, Elias"]
[Result "1/2-1/2"]
[ECO "E61"]
[WhiteElo "2115"]
[BlackElo "2215"]
[Annotator "NA"]
[PlyCount "83"]
[EventDate "2019.07.06"]
[EventType "swiss"]
[EventCountry "NOR"]
[SourceTitle "playchess.com"]
[Source "ChessBase"]
[SourceQuality "1"]
[TimeControl "40/5400+30:1800+30"]

1. d4 {[%emt 0:01:47]} Nf6 {[%emt 0:00:00]} 2. Nf3 {[%emt 0:00:26]} g6 {[%emt 0:00:00]} 3. c4 {[%emt 0:00:28]} Bg7 {[%emt 0:00:00]} 4. Nc3 {[%emt 0:00:44]} O-O {[%emt 0:00:00]} 5. Bf4 {[%emt 0:00:33]} d6 {[%emt 0:00:04]} 6. e3 {[%emt 0:00:46]} Nc6 {[%emt 0:09:29]} 7. d5 {[%emt 0:03:57]} e5 {[%emt 0:00:17]} 8. Bg5 {[%emt 0:02:12]} Ne7 {[%emt 0:00:32]} 9. Be2 {[%emt 0:01:55]} h6 {[%emt 0:00:54]} 10. Bxf6 {[%emt 0:06:21]} Bxf6 {[%emt 0:00:06]} 11. Nd2 {[%emt 0:03:09]} Bg7 {[%emt 0:02:04]} 12. e4 {[%emt 0:12:25]} Bd7 {[%emt 0:05:44]} 13. O-O {[%emt 0:03:17]} a5 {[%emt 0:03:23]} 14. b3 {[%emt 0:05:28]} h5 {[%emt 0:03:13]} 15. a3 {[%emt 0:02:45]} Bh6 {[%emt 0:00:25]} 16. Qc2 {[%emt 0:01:32]} f5 {[%emt 0:02:24]} 17. exf5 {[%emt 0:12:38]} Nxf5 {[%emt 0:01:47]} 18. Rae1 {[%emt 0:08:38]} Kg7 {[%emt 0:05:04]} 19. Nde4 {[%emt 0:03:11]} Nd4 {[%emt 0:06:37]} 20. Qd3 {[%emt 0:01:44]} Bf5 {[%emt 0:15:02]} 21. Bd1 {[%emt 0:01:34]} c6 {[%emt 0:13:27]} 22. Ne2 {[%emt 0:05:39]} c5 {[%emt 0:04:35]} 23. Nxd4 {[%emt 0:01:20]} cxd4 {[%emt 0:00:14]} 24. Bf3 {[%emt 0:03:22]} Rc8 {[%emt 0:03:54]} 25. a4 {[%emt 0:03:16]} Bf4 {[%emt 0:03:35]} 26. Qd1 {[%emt 0:02:13]} Qb6 {[%emt 0:03:26]} 27. Ng3 {[%emt 0:02:11]} h4 {[%emt 0:03:48]} 28. Ne4 {[%emt 0:02:09]} Rce8 {[%emt 0:02:07]} 29. g3 {[%emt 0:00:50]} hxg3 {[%emt 0:01:51]} 30. hxg3 {[%emt 0:00:20]} Qd8 {[%emt 0:02:18]} 31. Kg2 {[%emt 0:01:32]} Bh6 {[%emt 0:01:20]} 32. Rh1 {[%emt 0:01:19]} Bxe4 {[%emt 0:00:52]} 33. Bxe4 {[%emt 0:02:03]} Qg5 {[%emt 0:04:23]} 34. Rh4 {[%emt 0:01:53]} Qd2 {[%emt 0:00:57]} 35. Qxd2 {[%emt 0:01:21]} Bxd2 {[%emt 0:00:05]} 36. Reh1 {[%emt 0:00:36]} Rh8 {[%emt 0:00:13]} 37. Rxh8 {[%emt 0:00:42]} Rxh8 {[%emt 0:00:04]} 38. Rxh8 {[%emt 0:00:16]} Kxh8 {[%emt 0:00:04]} 39. Bxg6 {[%emt 0:00:39]} Kg7 {[%emt 0:00:54]} 40. Be4 {[%emt 0:00:50]} b6 {[%emt 0:00:26]} 41. Kh3 {[%emt 0:31:01]} Kf6 {[%emt 0:30:16]} 42. Kg4 {[%emt 0:00:14]} 1/2-1/2

[Event "NOR-ch Various 2019"]
[Site "Larvik"]
[Date "2019.07.09"]
[Round "4.34"]
[White "Holleland, Sigve"]
[Black "Thanke, Bror"]
[Result "0-1"]
[ECO "B07"]
[WhiteElo "2092"]
[BlackElo "2191"]
[Annotator "NA"]
[PlyCount "100"]
[EventDate "2019.07.06"]
[EventType "swiss"]
[EventCountry "NOR"]
[SourceTitle "playchess.com"]
[Source "ChessBase"]
[SourceQuality "1"]
[TimeControl "40/5400+30:1800+30"]

1. d4 {[%emt 0:01:19]} Nf6 {[%emt 0:03:15]} 2. Bf4 {[%emt 0:00:50]} d6 {[%emt 0:00:34]} 3. Nc3 {[%emt 0:00:33]} g6 {[%emt 0:01:11]} 4. e4 {[%emt 0:00:45]} Bg7 {[%emt 0:00:06]} 5. Qd2 {[%emt 0:00:10]} h5 {[%emt 0:00:57]} 6. h3 {[%emt 0:02:18]} c6 {[%emt 0:14:45]} 7. a4 {[%emt 0:02:14]} Qa5 {[%emt 0:07:04]} 8. Nf3 {[%emt 0:02:22]} O-O {[%emt 0:07:15]} 9. Bd3 {[%emt 0:03:39]} Nbd7 {[%emt 0:06:38]} 10. Rb1 {[%emt 0:17:13]} e5 {[%emt 0:01:44]} 11. b4 {[%emt 0:00:17]} Qc7 {[%emt 0:00:08]} 12. dxe5 {[%emt 0:00:48]} dxe5 {[%emt 0:00:19]} 13. Be3 {[%emt 0:02:18]} Rd8 {[%emt 0:02:06]} 14. Qe2 {[%emt 0:07:42]} Nf8 {[%emt 0:01:56]} 15. Ng5 {[%emt 0:01:11]} Ne6 {[%emt 0:01:02]} 16. Nxe6 {[%emt 0:00:07]} Bxe6 {[%emt 0:00:10]} 17. O-O {[%emt 0:00:11]} Rd7 {[%emt 0:14:11]} 18. Kh1 {[%emt 0:04:58]} Qd8 {[%emt 0:03:10]} 19. Bg5 {[%emt 0:01:49]} Qf8 {[%emt 0:00:47]} 20. Qe3 {[%emt 0:02:49]} Nh7 {[%emt 0:02:09]} 21. Bh4 {[%emt 0:03:46]} Bh6 {[%emt 0:00:13]} 22. Qe2 {[%emt 0:00:37]} Rd4 {[%emt 0:02:57]} 23. b5 {[%emt 0:01:49]} Qa3 {[%emt 0:04:22]} 24. Qe1 {[%emt 0:02:07]} Bc4 {[%emt 0:03:37]} 25. bxc6 {[%emt 0:02:39]} bxc6 {[%emt 0:00:22]} 26. Rb7 {[%emt 0:03:41]} Re8 {[%emt 0:03:27]} 27. Nb1 {[%emt 0:08:41]} Qc5 {[%emt 0:00:55]} 28. Qc3 {[%emt 0:00:50]} Bf8 {[%emt 0:00:51]} 29. Bxc4 {[%emt 0:09:30]} Rxc4 {[%emt 0:00:26]} 30. Qf3 {[%emt 0:00:20]} Be7 {[%emt 0:01:41]} 31. Nd2 {[%emt 0:00:57]} Rb4 {[%emt 0:05:04]} 32. Rd7 {[%emt 0:03:14]} Rxa4 {[%emt 0:04:15]} 33. Nb3 {[%emt 0:00:27]} Qc4 {[%emt 0:01:13]} 34. Nd2 {[%emt 0:03:08]} Qe6 {[%emt 0:00:53]} 35. Rxe7 {[%emt 0:00:13]} Rxe7 {[%emt 0:00:06]} 36. Bxe7 {[%emt 0:00:06]} Qxe7 {[%emt 0:00:07]} 37. Qc3 {[%emt 0:00:36]} Qd6 {[%emt 0:02:29]} 38. f3 {[%emt 0:01:54]} Nf8 {[%emt 0:01:38]} 39. Rb1 {[%emt 0:01:48]} Ne6 {[%emt 0:01:17]} 40. Qb3 {[%emt 0:02:45]} Rd4 {[%emt 0:01:10]} 41. Nc4 {[%emt 0:30:47]} Qc5 {[%emt 0:07:55]} 42. Nb2 {[%emt 0:00:00]} Rb4 {[%emt 0:05:22]} 43. Qa3 {[%emt 0:00:00]} Qb5 {[%emt 0:02:21]} 44. Kh2 {[%emt 0:00:00]} a5 {[%emt 0:02:00]} 45. c4 {[%emt 0:00:00]} Qb8 {[%emt 0:00:50]} 46. g4 {[%emt 0:00:00]} hxg4 {[%emt 0:01:11]} 47. hxg4 {[%emt 0:00:00]} Qd8 {[%emt 0:00:53]} 48. Kg3 {[%emt 0:00:00]} Qg5 {[%emt 0:00:59]} 49. Qxa5 {[%emt 0:00:00]} Qf4+ {[%emt 0:00:38]} 50. Kh4 {[%emt 0:00:00]} Qh2# {[%emt 0:00:40]} 0-1

[Event "NOR-ch Various 2019"]
[Site "Larvik"]
[Date "2019.07.09"]
[Round "4.35"]
[White "Martinsen, Stig K"]
[Black "Shehzad, Shazil"]
[Result "1/2-1/2"]
[ECO "A57"]
[WhiteElo "2177"]
[BlackElo "2088"]
[Annotator "NA"]
[PlyCount "48"]
[EventDate "2019.07.06"]
[EventType "swiss"]
[EventCountry "NOR"]
[SourceTitle "playchess.com"]
[Source "ChessBase"]
[SourceQuality "1"]
[TimeControl "40/5400+30:1800+30"]

1. d4 {[%emt 0:13:15]} Nf6 {[%emt 0:00:00]} 2. Nf3 {[%emt 0:00:20]} c5 {[%emt 0:00:03]} 3. d5 {[%emt 0:00:51]} b5 {[%emt 0:00:22]} 4. c4 {[%emt 0:02:33]} g6 {[%emt 0:02:59]} 5. cxb5 {[%emt 0:00:58]} a6 {[%emt 0:00:28]} 6. b6 {[%emt 0:00:38]} Qxb6 {[%emt 0:00:39]} 7. Nc3 {[%emt 0:00:48]} d6 {[%emt 0:00:25]} 8. e4 {[%emt 0:01:19]} Bg4 {[%emt 0:00:17]} 9. Qa4+ {[%emt 0:01:50]} Bd7 {[%emt 0:06:27]} 10. Qc2 {[%emt 0:01:39]} Bb5 {[%emt 0:04:38]} 11. Qb3 {[%emt 0:02:07]} Nbd7 {[%emt 0:03:00]} 12. Nxb5 {[%emt 0:16:06]} axb5 {[%emt 0:00:26]} 13. Bxb5 {[%emt 0:00:50]} Rb8 {[%emt 0:03:38]} 14. a4 {[%emt 0:03:45]} Nxe4 {[%emt 0:09:35]} 15. O-O {[%emt 0:22:12]} Bg7 {[%emt 0:05:07]} 16. Re1 {[%emt 0:06:46]} Nef6 {[%emt 0:02:18]} 17. Bf4 {[%emt 0:06:23]} O-O {[%emt 0:06:48]} 18. Rxe7 {[%emt 0:00:28]} Nh5 {[%emt 0:03:42]} 19. Bd2 {[%emt 0:02:45]} Ne5 {[%emt 0:04:53]} 20. Nxe5 {[%emt 0:01:59]} Bxe5 {[%emt 0:01:36]} 21. Bc3 {[%emt 0:03:46]} Qd8 {[%emt 0:00:58]} 22. Ra7 {[%emt 0:00:29]} Qb6 {[%emt 0:00:16]} 23. Bxe5 {[%emt 0:01:09]} dxe5 {[%emt 0:00:17]} 24. Re7 {[%emt 0:02:47]} Qd6 {[%emt 0:00:22]} 1/2-1/2

[Event "NOR-ch Various 2019"]
[Site "Larvik"]
[Date "2019.07.09"]
[Round "4.36"]
[White "Machlik, Monika"]
[Black "Fossan, Aleksander"]
[Result "1/2-1/2"]
[ECO "D92"]
[WhiteElo "2083"]
[BlackElo "2155"]
[Annotator "NA"]
[PlyCount "24"]
[EventDate "2019.07.06"]
[EventType "swiss"]
[EventCountry "NOR"]
[SourceTitle "playchess.com"]
[Source "ChessBase"]
[SourceQuality "1"]
[TimeControl "40/5400+30:1800+30"]

1. d4 {[%emt 0:00:00]} Nf6 {[%emt 0:01:17]} 2. c4 {[%emt 0:00:00]} g6 {[%emt 0:00:14]} 3. Nc3 {[%emt 0:00:23]} d5 {[%emt 0:00:34]} 4. Bf4 {[%emt 0:00:43]} Bg7 {[%emt 0:00:27]} 5. Nf3 {[%emt 0:00:09]} O-O {[%emt 0:00:13]} 6. Rc1 {[%emt 0:00:14]} c5 {[%emt 0:00:09]} 7. dxc5 {[%emt 0:00:43]} dxc4 {[%emt 0:00:32]} 8. e4 {[%emt 0:09:55]} Qa5 {[%emt 0:01:01]} 9. Nd2 {[%emt 0:03:01]} Be6 {[%emt 0:09:41]} 10. Qa4 {[%emt 0:13:46]} Qxc5 {[%emt 0:01:09]} 11. Bxc4 {[%emt 0:01:57]} Bxc4 {[%emt 0:00:31]} 12. Qxc4 {[%emt 0:03:50]} Qxc4 {[%emt 0:07:23]} 1/2-1/2

[Event "NOR-ch Various 2019"]
[Site "Larvik"]
[Date "2019.07.09"]
[Round "4.37"]
[White "Skagseth, Havard M"]
[Black "Skotheim, Andreas"]
[Result "1/2-1/2"]
[ECO "B44"]
[WhiteElo "2002"]
[BlackElo "2138"]
[Annotator "NA"]
[PlyCount "27"]
[EventDate "2019.07.06"]
[EventType "swiss"]
[EventCountry "NOR"]
[SourceTitle "playchess.com"]
[Source "ChessBase"]
[SourceQuality "1"]
[TimeControl "40/5400+30:1800+30"]

1. e4 {[%emt 0:00:00]} c5 {[%emt 0:00:00]} 2. Nf3 {[%emt 0:00:00]} e6 {[%emt 0:00:00]} 3. d4 {[%emt 0:00:00]} cxd4 {[%emt 0:00:01]} 4. Nxd4 {[%emt 0:00:04]} Nc6 {[%emt 0:00:12]} 5. c4 {[%emt 0:05:49]} Nf6 {[%emt 0:00:25]} 6. Nc3 {[%emt 0:00:25]} Bb4 {[%emt 0:00:17]} 7. Nxc6 {[%emt 0:05:25]} bxc6 {[%emt 0:00:31]} 8. Bd3 {[%emt 0:00:22]} d5 {[%emt 0:01:02]} 9. exd5 {[%emt 0:07:13]} exd5 {[%emt 0:00:26]} 10. cxd5 {[%emt 0:03:58]} Nxd5 {[%emt 0:00:42]} 11. Bd2 {[%emt 0:01:08]} Nxc3 {[%emt 0:31:38]} 12. Bxc3 {[%emt 0:03:34]} Bxc3+ {[%emt 0:04:04]} 13. bxc3 {[%emt 0:00:07]} Qe7+ {[%emt 0:01:09]} 14. Qe2 {[%emt 0:01:05]} 1/2-1/2

[Event "NOR-ch Various 2019"]
[Site "Larvik"]
[Date "2019.07.09"]
[Round "4.38"]
[White "Huse, Sigurd Kjelsbol"]
[Black "Esbensen, Kai Inge"]
[Result "1-0"]
[ECO "C68"]
[WhiteElo "2122"]
[BlackElo "1991"]
[Annotator "NA"]
[PlyCount "97"]
[EventDate "2019.07.06"]
[EventType "swiss"]
[EventCountry "NOR"]
[SourceTitle "playchess.com"]
[Source "ChessBase"]
[SourceQuality "1"]
[TimeControl "40/5400+30:1800+30"]

1. e4 {[%emt 0:00:00]} e5 {[%emt 0:00:00]} 2. Nf3 {[%emt 0:00:00]} Nc6 {[%emt 0:00:00]} 3. Bb5 {[%emt 0:00:00]} a6 {[%emt 0:00:17]} 4. Bxc6 {[%emt 0:00:00]} dxc6 {[%emt 0:00:07]} 5. O-O {[%emt 0:00:00]} Be7 {[%emt 0:01:38]} 6. d3 {[%emt 0:06:10]} Bf6 {[%emt 0:00:13]} 7. Be3 {[%emt 0:01:09]} Ne7 {[%emt 0:02:06]} 8. Nbd2 {[%emt 0:00:12]} O-O {[%emt 0:04:19]} 9. h3 {[%emt 0:02:44]} Ng6 {[%emt 0:01:39]} 10. Nb3 {[%emt 0:03:15]} Re8 {[%emt 0:03:46]} 11. Re1 {[%emt 0:00:23]} b6 {[%emt 0:03:16]} 12. Nh2 {[%emt 0:09:19]} c5 {[%emt 0:03:31]} 13. Ng4 {[%emt 0:01:05]} Bg5 {[%emt 0:02:52]} 14. Qf3 {[%emt 0:04:46]} Bf4 {[%emt 0:14:56]} 15. Nd2 {[%emt 0:05:44]} h5 {[%emt 0:04:40]} 16. Nh2 {[%emt 0:00:36]} Qg5 {[%emt 0:03:04]} 17. Bxf4 {[%emt 0:01:59]} Nxf4 {[%emt 0:14:07]} 18. Kh1 {[%emt 0:01:47]} Nxg2 {[%emt 0:04:45]} 19. Rg1 {[%emt 0:01:47]} Qxd2 {[%emt 0:00:32]} 20. Rxg2 {[%emt 0:00:10]} Qh6 {[%emt 0:02:45]} 21. Rag1 {[%emt 0:01:52]} g6 {[%emt 0:04:27]} 22. Rg5 {[%emt 0:00:46]} Bg4 {[%emt 0:11:30]} 23. Nxg4 {[%emt 0:06:04]} hxg4 {[%emt 0:00:04]} 24. R1xg4 {[%emt 0:00:30]} Kg7 {[%emt 0:01:55]} 25. h4 {[%emt 0:03:51]} f6 {[%emt 0:07:04]} 26. Rxg6+ {[%emt 0:01:46]} Qxg6 {[%emt 0:00:04]} 27. Rxg6+ {[%emt 0:00:07]} Kxg6 {[%emt 0:00:03]} 28. Qf5+ {[%emt 0:00:24]} Kf7 {[%emt 0:01:09]} 29. Qh7+ {[%emt 0:00:14]} Ke6 {[%emt 0:00:12]} 30. Qxc7 {[%emt 0:00:10]} Rg8 {[%emt 0:05:10]} 31. Qxb6+ {[%emt 0:02:27]} Kf7 {[%emt 0:00:03]} 32. Kh2 {[%emt 0:01:10]} Rae8 {[%emt 0:01:24]} 33. Qb7+ {[%emt 0:02:34]} Re7 {[%emt 0:01:33]} 34. Qd5+ {[%emt 0:01:10]} Kg7 {[%emt 0:00:31]} 35. Kh3 {[%emt 0:01:24]} Kh7 {[%emt 0:00:25]} 36. Qd6 {[%emt 0:01:06]} Reg7 {[%emt 0:02:12]} 37. Qxf6 {[%emt 0:00:52]} Rg1 {[%emt 0:00:12]} 38. Qf3 {[%emt 0:01:39]} R8g6 {[%emt 0:00:23]} 39. c3 {[%emt 0:06:01]} Kg8 {[%emt 0:00:53]} 40. b4 {[%emt 0:03:27]} Rg7 {[%emt 0:00:48]} 41. bxc5 {[%emt 0:32:45]} Rf7 {[%emt 0:30:18]} 42. Qh5 {[%emt 0:05:09]} Rfg7 {[%emt 0:00:00]} 43. Qe8+ {[%emt 0:00:00]} Kh7 {[%emt 0:00:00]} 44. Qxe5 {[%emt 0:00:00]} Rh1+ {[%emt 0:00:00]} 45. Qh2 {[%emt 0:00:00]} Rxh2+ {[%emt 0:00:00]} 46. Kxh2 {[%emt 0:00:00]} Rb7 {[%emt 0:00:00]} 47. d4 {[%emt 0:00:00]} Rb2 {[%emt 0:00:00]} 48. c6 {[%emt 0:00:00]} Kg6 {[%emt 0:00:00]} 49. h5+ {[%emt 0:00:00]} 1-0

[Event "NOR-ch Various 2019"]
[Site "Larvik"]
[Date "2019.07.09"]
[Round "4.39"]
[White "Aulin-Jansson, Joran"]
[Black "Rasmussen, Jonas H"]
[Result "1/2-1/2"]
[ECO "C68"]
[WhiteElo "2223"]
[BlackElo "2017"]
[Annotator "NA"]
[PlyCount "151"]
[EventDate "2019.07.06"]
[EventType "swiss"]
[EventCountry "NOR"]
[SourceTitle "playchess.com"]
[Source "ChessBase"]
[SourceQuality "1"]
[TimeControl "40/5400+30:1800+30"]

1. e4 {[%emt 0:05:46]} e5 {[%emt 0:00:00]} 2. Nf3 {[%emt 0:00:07]} Nc6 {[%emt 0:00:00]} 3. Bb5 {[%emt 0:00:05]} a6 {[%emt 0:00:00]} 4. Bxc6 {[%emt 0:00:05]} dxc6 {[%emt 0:00:00]} 5. Nc3 {[%emt 0:00:12]} Bd6 {[%emt 0:00:04]} 6. d4 {[%emt 0:00:18]} exd4 {[%emt 0:00:17]} 7. Qxd4 {[%emt 0:00:05]} f6 {[%emt 0:00:08]} 8. O-O {[%emt 0:00:06]} Ne7 {[%emt 0:00:15]} 9. Rd1 {[%emt 0:00:07]} Ng6 {[%emt 0:00:07]} 10. h3 {[%emt 0:06:50]} Qe7 {[%emt 0:02:52]} 11. Re1 {[%emt 0:02:28]} O-O {[%emt 0:02:25]} 12. Be3 {[%emt 0:01:30]} Be6 {[%emt 0:08:13]} 13. Qd3 {[%emt 0:00:43]} Rfd8 {[%emt 0:05:21]} 14. Qe2 {[%emt 0:01:18]} Nf4 {[%emt 0:10:57]} 15. Bxf4 {[%emt 0:04:37]} Bxf4 {[%emt 0:00:27]} 16. a3 {[%emt 0:01:24]} Qf7 {[%emt 0:04:49]} 17. Rad1 {[%emt 0:03:30]} Bc4 {[%emt 0:10:18]} 18. Rxd8+ {[%emt 0:00:09]} Rxd8 {[%emt 0:00:04]} 19. Rd1 {[%emt 0:00:07]} Rd6 {[%emt 0:03:40]} 20. Qe1 {[%emt 0:01:41]} Qd7 {[%emt 0:02:20]} 21. b3 {[%emt 0:02:49]} Rxd1 {[%emt 0:05:17]} 22. Qxd1 {[%emt 0:00:35]} Qxd1+ {[%emt 0:01:54]} 23. Nxd1 {[%emt 0:00:05]} Be2 {[%emt 0:02:36]} 24. Nc3 {[%emt 0:03:31]} Bxf3 {[%emt 0:00:22]} 25. gxf3 {[%emt 0:00:05]} Kf7 {[%emt 0:00:28]} 26. Ne2 {[%emt 0:02:54]} Bd6 {[%emt 0:01:41]} 27. a4 {[%emt 0:00:06]} c5 {[%emt 0:01:52]} 28. c4 {[%emt 0:00:58]} g5 {[%emt 0:12:37]} 29. Nc1 {[%emt 0:04:33]} a5 {[%emt 0:05:53]} 30. Nd3 {[%emt 0:00:40]} Kg6 {[%emt 0:02:48]} 31. Kg2 {[%emt 0:00:25]} b6 {[%emt 0:02:21]} 32. h4 {[%emt 0:02:36]} h6 {[%emt 0:00:43]} 33. f4 {[%emt 0:10:51]} gxf4 {[%emt 0:06:10]} 34. Kf3 {[%emt 0:01:19]} Kh5 {[%emt 0:01:20]} 35. Nxf4+ {[%emt 0:00:06]} Kxh4 {[%emt 0:00:44]} 36. Nd5 {[%emt 0:00:53]} Kg5 {[%emt 0:01:23]} 37. Ke3 {[%emt 0:00:30]} Kg6 {[%emt 0:02:53]} 38. f4 {[%emt 0:00:19]} h5 {[%emt 0:02:08]} 39. Kf3 {[%emt 0:00:05]} Kf7 {[%emt 0:00:46]} 40. Ne3 {[%emt 0:00:53]} Kg6 {[%emt 0:01:37]} 41. Nf5 {[%emt 0:32:16]} Kf7 {[%emt 0:31:59]} 42. Kg3 {[%emt 0:00:40]} Kg6 {[%emt 0:00:34]} 43. Nh4+ {[%emt 0:01:36]} Kf7 {[%emt 0:00:22]} 44. Ng2 {[%emt 0:00:06]} Kg6 {[%emt 0:00:27]} 45. Kh3 {[%emt 0:03:23]} Kh6 {[%emt 0:00:00]} 46. Kh4 {[%emt 0:00:00]} Kg6 {[%emt 0:00:00]} 47. Kg3 {[%emt 0:00:00]} Kg7 {[%emt 0:00:00]} 48. Nh4 {[%emt 0:00:00]} Kf7 {[%emt 0:00:00]} 49. Kf3 {[%emt 0:00:00]} Kg7 {[%emt 0:00:00]} 50. Ke3 {[%emt 0:00:00]} Kf7 {[%emt 0:00:00]} 51. Nf3 {[%emt 0:00:00]} Ke6 {[%emt 0:00:00]} 52. Ne1 {[%emt 0:00:00]} Kf7 {[%emt 0:00:00]} 53. Nd3 {[%emt 0:00:00]} Ke6 {[%emt 0:00:00]} 54. Kf3 {[%emt 0:00:00]} Kf7 {[%emt 0:00:00]} 55. e5 {[%emt 0:00:00]} fxe5 {[%emt 0:00:00]} 56. fxe5 {[%emt 0:00:00]} Be7 {[%emt 0:00:00]} 57. Nf4 {[%emt 0:00:00]} h4 {[%emt 0:00:00]} 58. Kg4 {[%emt 0:00:00]} c6 {[%emt 0:00:00]} 59. Kf5 {[%emt 0:00:00]} Bd8 {[%emt 0:00:00]} 60. Nh3 {[%emt 0:00:00]} Ke7 {[%emt 0:00:00]} 61. Nf4 {[%emt 0:08:26]} Kd7 {[%emt 0:00:00]} 62. Kg4 {[%emt 0:14:11]} Bc7 {[%emt 0:00:00]} 63. Kf5 {[%emt 0:01:53]} Bd8 {[%emt 0:00:00]} 64. Kg6 {[%emt 0:10:41]} h3 {[%emt 0:00:05]} 65. Nxh3 {[%emt 0:05:04]} Ke6 {[%emt 0:00:04]} 66. Kg7 {[%emt 0:00:37]} Kxe5 {[%emt 0:00:06]} 67. Kf7 {[%emt 0:00:01]} Kd4 {[%emt 0:00:30]} 68. Ke8 {[%emt 0:00:05]} Kc3 {[%emt 0:01:52]} 69. Kxd8 {[%emt 0:00:09]} Kxb3 {[%emt 0:00:14]} 70. Kc7 {[%emt 0:00:06]} Kxc4 {[%emt 0:00:54]} 71. Kxc6 {[%emt 0:00:44]} Kb4 {[%emt 0:00:19]} 72. Kxb6 {[%emt 0:00:05]} c4 {[%emt 0:00:15]} 73. Nf4 {[%emt 0:01:21]} Kxa4 {[%emt 0:00:06]} 74. Nd5 {[%emt 0:00:09]} Kb3 {[%emt 0:00:56]} 75. Kxa5 {[%emt 0:00:07]} c3 {[%emt 0:00:08]} 76. Nxc3 {[%emt 0:00:04]} 1/2-1/2

[Event "NOR-ch Various 2019"]
[Site "Larvik"]
[Date "2019.07.09"]
[Round "4.40"]
[White "Mikalsen, Harald"]
[Black "Machlik, Edit"]
[Result "1/2-1/2"]
[ECO "B19"]
[WhiteElo "1992"]
[BlackElo "2075"]
[Annotator "NA"]
[PlyCount "103"]
[EventDate "2019.07.06"]
[EventType "swiss"]
[EventCountry "NOR"]
[SourceTitle "playchess.com"]
[Source "ChessBase"]
[SourceQuality "1"]
[TimeControl "40/5400+30:1800+30"]

1. e4 {[%emt 0:08:49]} c6 {[%emt 0:00:00]} 2. d4 {[%emt 0:00:15]} d5 {[%emt 0:00:00]} 3. Nc3 {[%emt 0:00:19]} dxe4 {[%emt 0:00:00]} 4. Nxe4 {[%emt 0:00:15]} Bf5 {[%emt 0:00:00]} 5. Ng3 {[%emt 0:00:19]} Bg6 {[%emt 0:00:05]} 6. h4 {[%emt 0:00:57]} h6 {[%emt 0:00:12]} 7. h5 {[%emt 0:00:16]} Bh7 {[%emt 0:00:06]} 8. Nf3 {[%emt 0:00:11]} Nd7 {[%emt 0:01:12]} 9. Bd3 {[%emt 0:00:30]} Bxd3 {[%emt 0:00:09]} 10. Qxd3 {[%emt 0:00:08]} e6 {[%emt 0:00:19]} 11. Bf4 {[%emt 0:01:50]} Qa5+ {[%emt 0:00:16]} 12. Bd2 {[%emt 0:00:20]} Qc7 {[%emt 0:00:08]} 13. O-O-O {[%emt 0:00:23]} Ngf6 {[%emt 0:00:06]} 14. Ne4 {[%emt 0:00:35]} O-O-O {[%emt 0:01:20]} 15. Kb1 {[%emt 0:02:52]} Nc5 {[%emt 0:05:03]} 16. Nxc5 {[%emt 0:01:23]} Bxc5 {[%emt 0:00:06]} 17. Rh4 {[%emt 0:06:13]} Bd6 {[%emt 0:15:34]} 18. Qe2 {[%emt 0:11:04]} Rhe8 {[%emt 0:04:19]} 19. Ne5 {[%emt 0:04:34]} Rf8 {[%emt 0:23:01]} 20. Nc4 {[%emt 0:03:40]} Qe7 {[%emt 0:20:36]} 21. Nxd6+ {[%emt 0:03:25]} Qxd6 {[%emt 0:00:05]} 22. Bf4 {[%emt 0:04:48]} Qd5 {[%emt 0:00:10]} 23. Bg3 {[%emt 0:05:57]} Qf5 {[%emt 0:05:48]} 24. Rd3 {[%emt 0:04:23]} Rd5 {[%emt 0:01:29]} 25. Rf3 {[%emt 0:14:26]} Qg5 {[%emt 0:01:01]} 26. c4 {[%emt 0:00:54]} Ra5 {[%emt 0:04:56]} 27. d5 {[%emt 0:03:07]} Nxh5 {[%emt 0:09:38]} 28. dxc6 {[%emt 0:04:21]} b6 {[%emt 0:00:57]} 29. Qxe6+ {[%emt 0:03:06]} fxe6 {[%emt 0:00:27]} 30. Rxf8+ {[%emt 0:00:06]} Qd8 {[%emt 0:00:08]} 31. Rxd8+ {[%emt 0:00:15]} Kxd8 {[%emt 0:00:01]} 32. Rd4+ {[%emt 0:01:54]} Kc8 {[%emt 0:00:43]} 33. Bh2 {[%emt 0:01:30]} Nf6 {[%emt 0:02:39]} 34. Rd6 {[%emt 0:06:09]} Rh5 {[%emt 0:02:34]} 35. Bf4 {[%emt 0:02:40]} Rf5 {[%emt 0:00:25]} 36. Be3 {[%emt 0:04:53]} Re5 {[%emt 0:03:16]} 37. Kc2 {[%emt 0:00:54]} Ng4 {[%emt 0:00:59]} 38. Rd7 {[%emt 0:00:42]} Nxe3+ {[%emt 0:00:19]} 39. fxe3 {[%emt 0:00:06]} Rg5 {[%emt 0:00:46]} 40. Rxa7 {[%emt 0:00:47]} Rxg2+ {[%emt 0:00:02]} 41. Kd3 {[%emt 0:00:48]} Rxb2 {[%emt 0:10:28]} 42. Rxg7 {[%emt 0:00:21]} Rxa2 {[%emt 0:04:56]} 43. Kd4 {[%emt 0:00:43]} Ra5 {[%emt 0:04:19]} 44. Rb7 {[%emt 0:02:02]} h5 {[%emt 0:07:25]} 45. Rxb6 {[%emt 0:11:03]} h4 {[%emt 0:01:36]} 46. Ke4 {[%emt 0:04:51]} h3 {[%emt 0:02:24]} 47. Rb2 {[%emt 0:05:35]} Rh5 {[%emt 0:00:12]} 48. Rh2 {[%emt 0:00:09]} Kc7 {[%emt 0:00:41]} 49. Kf4 {[%emt 0:00:11]} Kxc6 {[%emt 0:00:58]} 50. Kg4 {[%emt 0:00:09]} Rc5 {[%emt 0:01:12]} 51. Rxh3 {[%emt 0:01:23]} Rxc4+ {[%emt 0:00:02]} 52. Kf3 {[%emt 0:00:21]} 1/2-1/2

[Event "NOR-ch Various 2019"]
[Site "Larvik"]
[Date "2019.07.09"]
[Round "4.41"]
[White "Hagesather, Ellen"]
[Black "Carlsen, Christian Heen"]
[Result "1-0"]
[ECO "B20"]
[WhiteElo "2193"]
[BlackElo "2013"]
[Annotator "NA"]
[PlyCount "71"]
[EventDate "2019.07.06"]
[EventType "swiss"]
[EventCountry "NOR"]
[SourceTitle "playchess.com"]
[Source "ChessBase"]
[SourceQuality "1"]
[TimeControl "40/5400+30:1800+30"]

1. e4 {[%emt 0:00:00]} c5 {[%emt 0:00:13]} 2. d3 {[%emt 0:00:00]} e6 {[%emt 0:01:31]} 3. g3 {[%emt 0:00:10]} d5 {[%emt 0:00:05]} 4. Qe2 {[%emt 0:01:05]} Be7 {[%emt 0:04:41]} 5. e5 {[%emt 0:03:58]} Nc6 {[%emt 0:01:11]} 6. Nf3 {[%emt 0:03:49]} h5 {[%emt 0:00:32]} 7. h4 {[%emt 0:03:13]} Nh6 {[%emt 0:00:35]} 8. Bxh6 {[%emt 0:00:39]} Rxh6 {[%emt 0:00:12]} 9. Bg2 {[%emt 0:00:08]} Qc7 {[%emt 0:02:16]} 10. O-O {[%emt 0:03:02]} Bd7 {[%emt 0:01:13]} 11. c3 {[%emt 0:01:55]} O-O-O {[%emt 0:06:13]} 12. d4 {[%emt 0:01:42]} cxd4 {[%emt 0:00:11]} 13. cxd4 {[%emt 0:00:35]} Qb6 {[%emt 0:00:38]} 14. Rd1 {[%emt 0:03:54]} f6 {[%emt 0:03:14]} 15. Nc3 {[%emt 0:01:39]} fxe5 {[%emt 0:01:06]} 16. dxe5 {[%emt 0:00:25]} Kb8 {[%emt 0:01:32]} 17. a3 {[%emt 0:04:59]} g5 {[%emt 0:07:49]} 18. Nxg5 {[%emt 0:05:44]} Bxg5 {[%emt 0:03:14]} 19. hxg5 {[%emt 0:00:06]} Rg6 {[%emt 0:00:10]} 20. Na4 {[%emt 0:09:59]} Qa5 {[%emt 0:03:30]} 21. Qxh5 {[%emt 0:06:09]} Rdg8 {[%emt 0:00:38]} 22. b3 {[%emt 0:04:16]} Rxg5 {[%emt 0:00:55]} 23. Qh7 {[%emt 0:01:50]} Nxe5 {[%emt 0:02:05]} 24. Rac1 {[%emt 0:10:32]} Bxa4 {[%emt 0:11:11]} 25. bxa4 {[%emt 0:00:09]} Ng4 {[%emt 0:00:13]} 26. Qf7 {[%emt 0:04:54]} R5g6 {[%emt 0:10:17]} 27. Rd4 {[%emt 0:02:55]} Qb6 {[%emt 0:13:37]} 28. a5 {[%emt 0:02:40]} Qxa5 {[%emt 0:01:59]} 29. Rb4 {[%emt 0:00:43]} b5 {[%emt 0:02:51]} 30. Qd7 {[%emt 0:02:38]} a6 {[%emt 0:02:31]} 31. Qd6+ {[%emt 0:01:13]} Ka8 {[%emt 0:00:54]} 32. Rc7 {[%emt 0:01:16]} Ne5 {[%emt 0:02:28]} 33. Qxe5 {[%emt 0:01:01]} Rxg3 {[%emt 0:00:39]} 34. fxg3 {[%emt 0:00:37]} Qb6+ {[%emt 0:01:31]} 35. Rd4 {[%emt 0:00:46]} Rf8 {[%emt 0:01:51]} 36. Rh7 {[%emt 0:01:59]} 1-0